bitfinex-derivatives/quotes_SOLF0:USTF0_20241218
["timestamp","ask_amount","ask_price","bid_price","bid_amount"]
[1734527070749,244.08896185,215.74,215.56,11.37318639]
[1734527070750,5.45892791,215.7,215.57,4.76831763]
[1734527070947,2.3192,215.65,215.6,2.3196]
[1734527071546,2.3193,215.63,215.59,2.3197]
[1734527071849,2.3193,215.63,215.6,4.76948586]
[1734527072045,2.3193,215.63,215.59,2.3197]
[1734527072251,2.3192,215.64,215.6,2.3196]
[1734527072446,2.3192,215.64,215.61,4.76946256]
[1734527072652,2.3192,215.64,215.6,2.3196]
[1734527073253,2.36,215.69,215.61,4.77091633]
[1734527073447,2.36,215.69,215.62,11.37318639]
[1734527073651,2.36,215.69,215.66,2.3189]
[1734527074550,2.36,215.69,215.62,11.37318639]
[1734527074753,50.21023775,215.74,215.63,4.77158824]
[1734527074946,2.36,215.73,215.66,2.3189]
[1734527075459,50.21023775,215.74,215.67,4.77149922]
[1734527075652,52.57023775,215.74,215.67,4.77149922]
[1734527075851,52.57023775,215.74,215.66,2.3189]
[1734527076546,52.57023775,215.74,215.61,1.5737]
[1734527076852,11.37318639,215.67,215.5,0.62798]
[1734527077053,2.3199,215.58,215.52,11.37318639]
[1734527077448,2.36,215.62,215.54,2.3203]
[1734527077653,2.3198,215.59,215.55,4.7708754]
[1734527077956,2.3198,215.59,215.56,4.7708754]
[1734527078454,2.3198,215.59,215.54,2.3203]
[1734527078656,2.3198,215.59,215.55,4.77127967]
[1734527078955,2.3198,215.59,215.56,4.77127967]
[1734527079454,2.3198,215.59,215.57,4.77127967]
[1734527079652,2.3198,215.59,215.54,2.3203]
[1734527079849,2.3198,215.59,215.55,4.77182793]
[1734527080048,2.3198,215.59,215.56,4.77182793]
[1734527080449,2.3197,215.6,215.57,4.77182793]
[1734527080652,2.36,215.61,215.57,4.77182793]
[1734527080850,2.36,215.61,215.52,11.37318639]
[1734527081157,4.6796,215.61,215.53,4.77244674]
[1734527081359,2.36,215.61,215.54,4.77244674]
[1734527081557,2.36,215.61,215.56,2.3201]
[1734527081756,2.36,215.61,215.57,4.77244674]
[1734527081959,2.36,215.61,215.58,4.77244674]
[1734527082159,2.36,215.61,215.56,2.3201]
[1734527082362,2.36,215.61,215.57,4.7730743]
[1734527082655,4.6795,215.61,215.57,2.32]
[1734527083157,2.36,215.61,215.57,2.32]
[1734527083862,2.3195,215.62,215.58,2.3198]
[1734527084264,2.3193,215.63,215.58,2.3198]
[1734527084465,2.3193,215.63,215.59,4.77601934]
[1734527084764,2.3193,215.63,215.58,2.3198]
[1734527085157,2.3193,215.63,215.59,4.77601368]
[1734527085364,2.3193,215.63,215.58,2.3198]
[1734527085663,2.3193,215.63,215.59,4.77621382]
[1734527085864,2.3193,215.63,215.6,4.77621382]
[1734527086064,2.3193,215.63,215.58,2.3198]
[1734527086258,2.3193,215.63,215.59,4.77709832]
[1734527086565,2.3193,215.63,215.59,2.3197]
[1734527087265,4.6792,215.65,215.59,2.3197]
[1734527087563,2.36,215.65,215.59,2.3197]
[1734527087764,2.36,215.65,215.6,4.77802275]
[1734527087966,11.37318639,215.7,215.58,11.37318639]
[1734527088163,2.32,215.69,215.61,11.37318639]
[1734527088366,11.37318639,215.73,215.62,4.77794728]
[1734527088367,2.32,215.73,215.62,4.77794728]
[1734527088570,2.3186,215.7,215.66,2.3189]
[1734527088759,2.32,215.73,215.66,2.3189]
[1734527088962,14.41388639,215.76,215.63,2.32]
[1734527089269,2.3184,215.72,215.67,2.3189]
[1734527089561,2.32,215.75,215.67,2.3189]
[1734527090173,2.3185,215.71,215.66,2.319]
[1734527091269,2.3185,215.71,215.67,7.0928575]
[1734527091571,2.3185,215.71,215.67,2.3189]
[1734527091963,2.3184,215.72,215.67,2.3189]
[1734527092363,2.32,215.74,215.64,11.37318639]
[1734527092566,2.3183,215.73,215.68,2.3187]
[1734527092765,2.32,215.74,215.64,11.37318639]
[1734527093069,2.3183,215.73,215.64,11.37318639]
[1734527093271,2.3183,215.73,215.65,4.7711202]
[1734527093667,2.3183,215.73,215.68,2.3187]
[1734527095568,2.3183,215.73,215.69,2.3186]
[1734527097467,2.3181,215.74,215.67,11.37318639]
[1734527097672,2.32,215.75,215.67,12.95418639]
[1734527097973,2.32,215.77,215.67,12.95418639]
[1734527098176,2.3179,215.76,215.71,2.3184]
[1734527098481,2.32,215.77,215.68,2.32]
[1734527098677,2.3178,215.78,215.72,2.3183]
[1734527098875,2.32,215.79,215.72,2.3183]
[1734527099078,2.32,215.79,215.67,12.95418639]
[1734527099377,13.69318639,215.79,215.67,15.27418639]
[1734527100575,2.3182,215.74,215.69,2.3187]
[1734527100877,13.69318639,215.79,215.67,15.27418639]
[1734527101069,2.3181,215.75,215.7,2.3185]
[1734527101469,2.32,215.78,215.7,11.37318639]
[1734527101675,2.32,215.81,215.73,11.37318639]
[1734527101876,2.32,215.82,215.73,11.37318639]
[1734527102075,2.32,215.82,215.68,1.5749]
[1734527102076,2.32,215.82,215.76,7.26261882]
[1734527102676,7.26261882,215.81,215.73,7.26261882]
[1734527103480,2.3177,215.78,215.73,9.58081882]
[1734527103672,7.26261882,215.77,215.68,1.5749]
[1734527103981,9.58261882,215.77,215.69,7.26261882]
[1734527104179,2.32,215.77,215.73,7.26261882]
[1734527104379,9.58261882,215.81,215.73,7.26261882]
[1734527104580,7.26261882,215.79,215.69,1.52]
[1734527104782,7.26261882,215.77,215.71,9.58101882]
[1734527105176,7.26261882,215.77,215.71,7.26261882]
[1734527105380,2.3181,215.75,215.71,7.26261882]
[1734527107878,2.318,215.76,215.71,7.26261882]
[1734527108084,2.318,215.76,215.73,7.26261882]
[1734527109488,7.26261882,215.79,215.73,7.26261882]
[1734527110381,5.67831539,215.85,215.73,7.26261882]
[1734527110585,2.32,215.84,215.75,7.26261882]
[1734527110781,2.32,215.84,215.77,7.26261882]
[1734527111786,2.3172,215.83,215.79,7.26261882]
[1734527111985,2.32,215.84,215.79,7.26261882]
[1734527112184,2.32,215.85,215.79,7.26261882]
[1734527112390,12.73165537,215.87,215.79,7.26261882]
[1734527112592,2.317,215.85,215.8,2.3174]
[1734527112984,2.317,215.85,215.81,7.26261882]
[1734527113390,2.32,215.87,215.83,7.26261882]
[1734527113982,53.2178,215.94,215.83,7.26261882]
[1734527113983,5.55137983,215.92,215.83,7.26261882]
[1734527114184,2.32,215.91,215.87,7.26261882]
[1734527114383,7.26261882,215.94,215.87,7.26261882]
[1734527114587,2.32,215.93,215.89,7.26261882]
[1734527115392,2.32,215.93,215.87,7.26261882]
[1734527115592,2.32,215.93,215.89,7.26261882]
[1734527115789,57.42543645,215.96,215.89,7.26261882]
[1734527116093,52.44281763,215.96,215.87,11.33376562]
[1734527116990,11.33376562,216.03,215.9,11.33376562]
[1734527117197,2.28,216.02,215.9,11.33376562]
[1734527117390,2.28,216.02,215.87,11.33376562]
[1734527117591,2.316,215.94,215.89,2.3165]
[1734527117888,2.28,215.97,215.87,11.33376562]
[1734527118090,2.28,215.97,215.88,1.5086]
[1734527118502,4.5958,215.97,215.91,2.3163]
[1734527119196,4.5958,215.97,215.92,2.3162]
[1734527119601,19.12360189,216.0,215.88,3.12]
[1734527119893,2.28,215.99,215.88,3.12]
[1734527120195,2.3159,215.95,215.89,2.3165]
[1734527120391,2.28,215.99,215.9,11.33376562]
[1734527120791,2.28,215.99,215.93,2.3161]
[1734527120993,2.28,215.99,215.9,11.33376562]
[1734527121787,5.56237267,216.01,215.9,11.33376562]
[1734527122092,2.28,216.0,215.9,11.33376562]
[1734527122492,2.3157,215.97,215.91,2.3162]
[1734527122695,2.28,216.0,215.88,4.5855]
[1734527122995,2.3157,215.97,215.91,2.3163]
[1734527123198,2.28,216.0,215.9,11.33376562]
[1734527125496,2.3159,215.95,215.9,11.33376562]
[1734527125695,2.28,216.0,215.9,11.33376562]
[1734527126096,2.28,216.0,215.9,13.65016562]
[1734527126900,2.28,216.0,215.85,2.3169]
[1734527127093,11.33376562,215.97,215.83,13.61376562]
[1734527127298,2.3167,215.88,215.83,13.61376562]
[1734527128103,2.3167,215.88,215.83,15.93086562]
[1734527128302,2.3165,215.9,215.83,13.61376562]
[1734527128599,2.28,215.92,215.84,2.3171]
[1734527128794,2.28,215.92,215.83,11.33376562]
[1734527129002,2.3166,215.89,215.83,11.33376562]
[1734527129299,2.3166,215.89,215.83,13.65086562]
[1734527129803,2.3166,215.89,215.83,11.33376562]
[1734527130001,2.3166,215.89,215.84,2.317]
[1734527130501,2.28,215.96,215.86,11.33376562]
[1734527130692,2.28,215.97,215.87,2.28]
[1734527130899,2.3161,215.93,215.87,3.8934]
[1734527131602,2.3164,215.91,215.87,1.6134]
[1734527131900,2.28,215.97,215.87,1.6134]
[1734527132098,11.33376562,215.96,215.87,1.6134]
[1734527132403,11.33376562,215.96,215.85,2.3169]
[1734527133403,2.3165,215.9,215.85,2.3169]
[1734527133600,2.28,215.92,215.83,11.33376562]
[1734527133902,2.3166,215.89,215.84,2.317]
[1734527135700,2.28,215.92,215.84,2.317]
[1734527135701,2.3167,215.88,215.84,2.317]
[1734527138102,2.28,215.92,215.83,13.65086562]
[1734527138103,2.3168,215.87,215.83,13.65086562]
[1734527139404,2.28,215.92,215.83,13.65086562]
[1734527139604,2.3169,215.86,215.83,13.65086562]
[1734527139799,2.28,215.87,215.78,3.8754]
[1734527140005,2.3173,215.82,215.78,1.5577]
[1734527140207,2.28,215.87,215.8,11.33376562]
[1734527140405,2.28,215.87,215.8,13.65126562]
[1734527141509,2.3171,215.84,215.8,13.65126562]
[1734527142108,2.3169,215.86,215.8,11.33376562]
[1734527142412,2.3169,215.86,215.84,7.25737687]
[1734527142709,3.1871,215.95,215.84,7.25737687]
[1734527142710,2.28,215.88,215.84,7.25737687]
[1734527143010,3.0114,215.95,215.86,7.25737687]
[1734527143210,2.3164,215.91,215.88,7.25737687]
[1734527143606,2.28,215.94,215.88,7.25737687]
[1734527143810,2.3165,215.9,215.88,7.25737687]
[1734527144006,8.72877687,215.95,215.88,7.25737687]
[1734527144007,2.28,215.93,215.88,7.25737687]
[1734527144706,2.3164,215.9,215.88,7.25737687]
[1734527145202,2.28,215.93,215.88,7.25737687]
[1734527145411,2.3163,215.92,215.9,7.25737687]
[1734527145912,2.24,215.95,215.9,9.57367687]
[1734527146107,2.3159,215.96,215.92,7.25737687]
[1734527147009,2.24,215.98,215.92,7.25737687]
[1734527147708,2.24,215.99,215.96,7.25737687]
[1734527147913,2.24,216.01,215.98,7.25737687]
[1734527148119,2.24,216.01,215.94,11.32584518]
[1734527148612,4.5552,216.01,215.96,2.3158]
[1734527149717,2.3152,216.01,215.96,2.3158]
[1734527150207,4.5552,216.02,215.97,2.3157]
[1734527151211,2.24,216.02,215.95,2.9481]
[1734527151406,2.3152,216.01,215.95,2.9481]
[1734527151611,2.24,216.02,215.95,2.9481]
[1734527152110,11.32584518,216.09,215.95,2.9481]
[1734527152311,38.9717947,216.13,215.97,11.32584518]
[1734527152312,2.24,216.08,215.97,11.32584518]
[1734527152512,2.24,216.08,216.0,11.32584518]
[1734527153012,2.3147,216.06,216.0,13.64114518]
[1734527153614,2.3147,216.06,216.0,11.32584518]
[1734527153815,2.3147,216.06,216.01,2.3152]
[1734527154415,2.3146,216.07,216.01,2.3152]
[1734527154714,2.24,216.08,216.02,2.3151]
[1734527155016,16.88893661,216.13,216.0,11.32584518]
[1734527155017,2.24,216.1,216.0,11.32584518]
[1734527155209,5.56309143,216.13,216.0,11.32584518]
[1734527155414,2.3143,216.1,216.03,11.32584518]
[1734527155818,2.3143,216.1,216.04,1.5956]
[1734527156711,2.24,216.13,216.06,2.3147]
[1734527157013,2.24,216.14,216.06,11.32584518]
[1734527157208,2.3139,216.14,216.08,2.3144]
[1734527157414,40.38544307,216.19,216.08,2.3144]
[1734527157615,2.24,216.18,216.08,2.3144]
[1734527157810,12.83834518,216.19,216.08,2.3144]
[1734527158014,2.24,216.18,216.06,12.84834518]
[1734527158316,2.24,216.18,216.07,2.24]
[1734527158518,2.3141,216.12,216.06,3.7625]
[1734527159413,2.3141,216.12,216.07,2.3146]
[1734527160719,5.47568712,216.2,216.05,1.465]
[1734527160720,2.24,216.13,216.05,1.465]
[1734527161016,2.3143,216.1,216.05,1.465]
[1734527161918,2.3143,216.1,216.05,3.7798]
[1734527162312,2.3142,216.11,216.05,3.7798]
[1734527162613,2.24,216.13,216.05,1.465]
[1734527162918,2.3143,216.1,216.05,1.465]
[1734527163618,2.3144,216.09,216.05,1.465]
[1734527163820,2.24,216.13,216.05,1.465]
[1734527164418,2.24,216.14,216.05,1.465]
[1734527164626,5.47568712,216.2,216.08,11.32584518]
[1734527164826,5.47568712,216.2,216.1,2.3142]
[1734527165022,252.41945605,216.25,216.11,11.32584518]
[1734527165218,2.24,216.22,216.14,11.32584518]
[1734527165422,2.24,216.22,216.16,2.3136]
[1734527165626,189.2422241,216.23,216.16,2.3136]
[1734527165826,2.313,216.23,216.16,2.3136]
[1734527166026,57.96154701,216.25,216.16,2.3136]
[1734527166229,57.96154701,216.25,216.15,1.5846]
[1734527166527,2.3132,216.21,216.15,1.5846]
[1734527167525,2.3132,216.21,216.17,11.32584518]
[1734527167723,52.33578677,216.25,216.17,11.32584518]
[1734527168523,5.69343126,216.28,216.17,11.32584518]
[1734527168719,2.24,216.28,216.2,11.32584518]
[1734527169120,0.77215,216.3,216.2,11.32584518]
[1734527169321,3.01215,216.3,216.2,11.32584518]
[1734527171426,2.3125,216.27,216.22,2.313]
[1734527171721,3.01215,216.3,216.22,2.313]
[1734527172026,3.01215,216.3,216.2,11.32584518]
[1734527172527,0.77215,216.3,216.23,11.32584518]
[1734527172718,0.77215,216.3,216.24,1.4737]
[1734527173327,0.77215,216.3,216.24,3.7137]
[1734527173622,0.77215,216.3,216.25,1.5877]
[1734527173822,0.77215,216.3,216.26,2.3125]
[1734527174022,52.26557858,216.37,216.29,11.32584518]
[1734527174220,2.2,216.37,216.29,11.32584518]
[1734527174420,2.3112,216.4,216.32,13.63774518]
[1734527174620,252.3229655,216.5,216.38,11.32584518]
[1734527174823,252.3229655,216.5,216.41,11.32584518]
[1734527175020,2.2,216.52,216.41,11.32584518]
[1734527175219,1.5328,216.55,216.44,11.32584518]
[1734527175422,2.2,216.55,216.44,11.32584518]
[1734527175623,2.3098,216.52,216.44,11.32584518]
[1734527175819,5.52250181,216.54,216.47,11.32584518]
[1734527176022,2.3097,216.53,216.47,11.32584518]
[1734527176225,2.2,216.58,216.47,11.32584518]
[1734527176525,2.3093,216.57,216.5,11.32584518]
[1734527176727,5.67504178,216.58,216.5,11.32584518]
[1734527176924,2.2,216.59,216.5,11.32584518]
[1734527177924,2.2,216.59,216.48,2.2]
[1734527177925,2.2,216.61,216.53,11.32584518]
[1734527178227,2.2,216.61,216.53,15.83554518]
[1734527178425,2.3088,216.62,216.56,11.32584518]
[1734527178629,2.2,216.67,216.56,11.32584518]
[1734527178831,2.3087,216.62,216.56,11.32584518]
[1734527179130,2.2,216.67,216.56,11.32584518]
[1734527179536,2.3088,216.61,216.56,11.32584518]
[1734527180627,2.2,216.67,216.56,11.32584518]
[1734527180834,2.3085,216.65,216.57,2.3092]
[1734527181027,2.2,216.67,216.56,11.32584518]
[1734527181223,2.2,216.67,216.53,13.52584518]
[1734527181533,2.3092,216.58,216.51,3.7321]
[1734527181735,2.3092,216.58,216.51,1.5321]
[1734527181926,2.2,216.62,216.5,12.92654518]
[1734527182132,11.32584518,216.59,216.47,13.52584518]
[1734527182835,2.3096,216.54,216.47,13.52584518]
[1734527183029,2.2,216.55,216.44,11.32584518]
[1734527183230,2.2,216.54,216.41,12.88674518]
[1734527184037,2.2,216.54,216.41,1.5609]
[1734527184240,2.3105,216.46,216.41,1.5609]
[1734527184435,2.2,216.49,216.41,1.5609]
[1734527184941,2.3103,216.47,216.41,1.5609]
[1734527185128,2.2,216.49,216.41,1.5609]
[1734527185439,2.2,216.54,216.46,2.3104]
[1734527185639,2.3095,216.55,216.43,18.04333605]
[1734527186239,2.2,216.56,216.43,18.04333605]
[1734527186433,5.64946098,216.61,216.43,18.04333605]
[1734527186737,2.2,216.6,216.43,18.04333605]
[1734527186938,2.3095,216.55,216.43,18.04333605]
[1734527187331,2.3096,216.54,216.47,2.3103]
[1734527187835,2.2,216.6,216.43,18.04333605]
[1734527187836,2.2,216.55,216.43,20.24333605]
[1734527188139,2.2,216.54,216.43,20.24333605]
[1734527188542,2.2,216.54,216.43,2.2]
[1734527188842,2.2,216.54,216.41,1.5609]
[1734527189041,2.3102,216.48,216.41,1.5609]
[1734527189443,2.2,216.54,216.41,1.5609]
[1734527189641,2.31,216.51,216.42,2.3108]
[1734527189840,2.2,216.54,216.41,1.5609]
[1734527190236,4.5095,216.55,216.48,2.3102]
[1734527190544,5.64946098,216.61,216.46,18.04333605]
[1734527190545,2.2,216.56,216.46,20.24333605]
[1734527190742,2.3097,216.54,216.46,22.55363605]
[1734527190939,2.3097,216.54,216.46,20.24333605]
[1734527191142,5.64946098,216.61,216.46,20.24333605]
[1734527191337,2.2,216.6,216.46,20.24333605]
[1734527191833,2.2,216.6,216.5,18.04333605]
[1734527192142,5.64946098,216.61,216.54,18.04333605]
[1734527192143,2.3089,216.61,216.54,18.04333605]
[1734527192541,4.5088,216.62,216.55,2.3094]
[1734527192748,2.2,216.62,216.55,2.3094]
[1734527192948,0.96427,216.65,216.54,18.04333605]
[1734527193144,3.16427,216.65,216.54,18.04333605]
[1734527193347,2.3086,216.64,216.57,2.3091]
[1734527195240,0.96427,216.65,216.56,2.2]
[1734527195550,0.96427,216.65,216.54,18.04333605]
[1734527196144,0.96427,216.65,216.53,2.2]
[1734527196850,2.3091,216.59,216.53,2.2]
[1734527197048,2.2,216.62,216.52,4.563]
[1734527197252,2.2,216.62,216.52,3.0456]
[1734527198054,2.3094,216.56,216.52,3.0456]
[1734527198949,2.2,216.57,216.52,3.0456]
[1734527199345,2.3095,216.55,216.52,3.0456]
[1734527201149,2.3096,216.54,216.52,3.0456]
[1734527201657,1.4991,216.64,216.52,3.0456]
[1734527201856,0.96427,216.65,216.57,18.04333605]
[1734527202358,0.96427,216.65,216.6,2.3089]
[1734527202950,0.96427,216.65,216.57,18.04333605]
[1734527204256,0.96427,216.65,216.57,22.57243605]
[1734527204559,2.22,216.64,216.53,21.78653605]
[1734527205150,2.3092,216.58,216.53,19.56653605]
[1734527205352,2.22,216.64,216.53,19.56653605]
[1734527207264,2.3087,216.63,216.53,19.56653605]
[1734527207558,2.22,216.64,216.53,19.56653605]
[1734527207763,4.5285,216.64,216.56,2.3093]
[1734527207973,2.22,216.64,216.56,2.22]
[1734527208958,0.96427,216.65,216.56,2.22]
[1734527209465,2.3086,216.63,216.58,2.3091]
[1734527209760,0.96427,216.65,216.57,18.04333605]
[1734527209964,3.27277,216.65,216.57,18.04333605]
[1734527210467,0.96427,216.65,216.62,2.3086]
[1734527210763,0.96427,216.65,216.57,18.04333605]
[1734527211067,0.96427,216.65,216.59,2.309]
[1734527211266,0.96427,216.65,216.57,18.04333605]
[1734527211467,0.96427,216.65,216.58,4.68882827]
[1734527211669,0.96427,216.65,216.59,4.68882827]
[1734527211867,0.96427,216.65,216.6,4.68882827]
[1734527212067,0.96427,216.65,216.61,12.723059]
[1734527212264,0.96427,216.65,216.62,2.3086]
[1734527212469,0.96427,216.65,216.61,12.723059]
[1734527212670,2.3086,216.64,216.61,12.723059]
[1734527213761,2.3087,216.63,216.61,12.723059]
[1734527213967,0.96427,216.65,216.61,1.4669]
[1734527214470,2.22,216.64,216.55,11.256159]
[1734527214671,2.22,216.64,216.56,4.70478099]
[1734527214867,2.3092,216.57,216.56,4.70478099]
[1734527215169,2.22,216.64,216.54,1.4978]
[1734527215367,2.309,216.6,216.52,1.5774]
[1734527215568,13.476159,216.63,216.52,1.5774]
[1734527215964,13.476159,216.63,216.49,11.256159]
[1734527215965,2.3096,216.54,216.49,11.256159]
[1734527216172,2.22,216.57,216.5,4.71581987]
[1734527216371,2.22,216.56,216.46,11.256159]
[1734527216573,2.22,216.55,216.47,4.72272793]
[1734527216771,2.3099,216.52,216.48,4.72272793]
[1734527216969,2.22,216.55,216.49,4.72272793]
[1734527217173,2.22,216.55,216.5,4.72272793]
[1734527217665,2.22,216.55,216.51,4.72272793]
[1734527217870,4.5296,216.55,216.51,4.72272793]
[1734527218070,4.5296,216.55,216.52,4.72272793]
[1734527218275,2.22,216.55,216.52,4.72272793]
[1734527218477,2.3098,216.52,216.46,18.03072985]
[1734527218672,2.3098,216.52,216.47,4.73765694]
[1734527218877,2.3098,216.52,216.48,4.73765694]
[1734527219175,2.3099,216.51,216.49,4.73765694]
[1734527219377,5.63650763,216.58,216.5,4.73765694]
[1734527219571,2.22,216.57,216.51,4.73765694]
[1734527219877,2.22,216.57,216.52,4.73765694]
[1734527220076,2.22,216.57,216.53,4.73765694]
[1734527220275,2.3096,216.54,216.53,4.73765694]
[1734527220875,2.3096,216.54,216.53,3.94158896]
[1734527221076,20.25072985,216.57,216.41,3.8269]
[1734527221077,20.25072985,216.57,216.41,1.516]
[1734527221271,18.03072985,216.53,216.41,1.516]
[1734527221471,2.22,216.52,216.41,1.516]
[1734527221673,18.03072985,216.49,216.33,18.03072985]
[1734527222179,3.039,216.51,216.31,1.4747]
[1734527222180,18.03072985,216.45,216.31,1.4747]
[1734527222380,2.22,216.44,216.31,1.4747]
[1734527222582,2.22,216.44,216.3,3.0336]
[1734527222777,2.3117,216.35,216.3,3.0336]
[1734527223082,2.22,216.36,216.32,2.3119]
[1734527223282,2.22,216.37,216.3,3.0336]
[1734527223779,2.22,216.37,216.31,2.312]
[1734527223979,2.22,216.38,216.3,3.0336]
[1734527224872,2.3116,216.35,216.3,3.0336]
[1734527225071,2.22,216.38,216.26,1.5915]
[1734527225975,2.3117,216.35,216.26,3.904]
[1734527226175,2.22,216.38,216.26,3.904]
[1734527226577,2.22,216.38,216.26,1.5915]
[1734527226774,18.03072985,216.37,216.24,3.1096]
[1734527227177,2.3122,216.3,216.24,3.1096]
[1734527227475,2.22,216.29,216.24,3.1096]
[1734527227978,2.22,216.3,216.24,3.1096]
[1734527229079,2.22,216.3,216.17,18.03072985]
[1734527229285,2.3128,216.24,216.17,23.50382985]
[1734527229478,4.5328,216.24,216.17,23.50382985]
[1734527229678,4.5328,216.24,216.17,21.19032985]
[1734527229879,2.22,216.24,216.17,21.19032985]
[1734527230578,2.22,216.24,216.17,3.1596]
[1734527230883,2.22,216.24,216.09,18.03072985]
[1734527231277,2.3136,216.17,216.11,2.3141]
[1734527231679,2.22,216.18,216.1,5.44624314]
[1734527231984,2.22,216.18,216.11,2.3141]
[1734527232778,2.3137,216.16,216.11,2.3141]
[1734527232979,2.22,216.18,216.1,5.44624314]
[1734527233486,2.22,216.18,216.09,18.03072985]
[1734527233683,2.22,216.18,216.09,2.3143]
[1734527234083,2.22,216.18,216.07,3.1368]
[1734527234886,2.22,216.18,216.07,8.61991278]
[1734527235383,2.22,216.18,216.07,3.1368]
[1734527235983,2.3142,216.11,216.07,3.1368]
[1734527236292,4.5342,216.11,216.07,3.1368]
[1734527236483,2.22,216.11,216.07,3.1368]
[1734527238687,2.22,216.11,216.07,1.58]
[1734527238880,2.22,216.11,216.01,18.03072985]
[1734527239086,2.22,216.11,216.01,23.58235388]
[1734527239286,2.22,216.11,215.99,2.22]
[1734527239789,2.22,216.1,215.99,2.22]
[1734527239991,2.22,216.09,216.02,2.3151]
[1734527240191,2.22,216.08,216.02,2.3151]
[1734527240391,2.22,216.07,216.02,2.3151]
[1734527240988,2.3147,216.06,216.02,2.3151]
[1734527241286,2.22,216.07,216.0,2.3153]
[1734527241796,2.315,216.04,215.99,7.78755634]
[1734527242182,2.315,216.04,215.99,2.3154]
[1734527242489,2.315,216.03,215.99,2.3154]
[1734527242895,2.22,216.04,216.0,2.3153]
[1734527243084,5.54162111,216.15,215.98,5.4890346]
[1734527243287,2.22,216.14,215.98,5.4890346]
[1734527243588,2.3144,216.09,216.02,2.315]
[1734527243791,4.5344,216.09,215.98,5.4890346]
[1734527244291,4.5344,216.09,216.05,2.3148]
[1734527245589,2.22,216.09,216.05,2.3148]
[1734527245789,2.3143,216.11,216.05,2.3148]
[1734527245985,2.22,216.12,216.05,18.03072985]
[1734527246191,2.22,216.13,216.06,1.5616]
[1734527247784,2.22,216.13,216.09,2.3143]
[1734527247984,2.22,216.13,216.06,1.5616]
[1734527248486,2.3141,216.12,216.07,2.3145]
[1734527248792,2.22,216.13,216.06,1.5616]
[1734527248986,4.534,216.13,216.07,2.3145]
[1734527249191,2.22,216.13,216.06,1.5616]
[1734527249392,18.03072985,216.21,216.06,1.5616]
[1734527249593,2.3137,216.16,216.09,2.3143]
[1734527249787,4.0611,216.24,216.09,2.3143]
[1734527249995,2.22,216.23,216.12,11.30730709]
[1734527250396,2.3134,216.19,216.14,2.3138]
[1734527250694,2.22,216.18,216.12,11.30730709]
[1734527250990,2.3133,216.2,216.12,13.52730709]
[1734527251198,2.22,216.22,216.15,11.30730709]
[1734527251589,4.5331,216.22,216.16,2.3136]
[1734527251788,2.22,216.22,216.15,11.30730709]
[1734527251997,2.22,216.22,216.12,2.22]
[1734527252198,2.3132,216.2,216.15,2.3137]
[1734527252393,2.22,216.22,216.12,2.22]
[1734527252900,2.22,216.22,216.11,18.08965812]
[1734527253102,2.22,216.22,216.11,20.30965812]
[1734527253503,2.3133,216.19,216.12,2.314]
[1734527253695,2.22,216.22,216.11,20.30965812]
[1734527253897,13.9,216.41,216.11,25.86944248]
[1734527254204,18.08965812,216.38,216.23,2.3128]
[1734527254504,18.08965812,216.38,216.21,2.22]
[1734527254701,2.3123,216.29,216.21,2.22]
[1734527256199,2.3123,216.29,216.22,2.3129]
[1734527256605,2.3123,216.29,216.21,2.22]
[1734527257106,2.3123,216.29,216.23,2.3129]
[1734527257403,4.532,216.31,216.21,2.22]
[1734527257599,18.08965812,216.38,216.26,2.3125]
[1734527257800,5.5261102,216.34,216.22,1.518]